fUST/lending_fUST_20240424
["ID","MTS","AMOUNT","RATE_DAILY","PERIOD"]
[323342021,1713906659111,-500.0,0.00020821,2]
[323342022,1713906659123,-520.67,0.00020821,2]
[323342023,1713906659134,-657.21,0.00020821,2]
[323342024,1713906659144,-904.57,0.00020821,2]
[323342025,1713906659153,-226.063593,0.00020821,2]
[323342026,1713906659163,-513.66,0.00020821,2]
[323342027,1713906659173,-580.19,0.00020821,2]
[323342028,1713906659183,-589.6,0.00020821,2]
[323342029,1713906659192,-500.0,0.00020821,2]
[323342030,1713906659204,-500.0,0.00020821,2]
[323342031,1713906659214,-1834.44,0.00020821,2]
[323342032,1713906659223,-500.0,0.00020821,2]
[323342033,1713906659233,-500.0,0.00020821,2]
[323342034,1713906659243,-981.79,0.00020821,2]
[323342035,1713906659252,-500.0,0.00020821,2]
[323342036,1713906659261,-228.36569,0.00020821,2]
[323342037,1713906659271,-500.0,0.00020821,2]
[323342038,1713906659281,-500.0,0.00020821,2]
[323342039,1713906659290,-527.18,0.00020821,2]
[323342040,1713906659300,-500.0,0.00020821,2]
[323342041,1713906659310,-500.0,0.00020821,2]
[323342042,1713906659319,-500.0,0.00020821,2]
[323342043,1713906659449,-151.0,0.00020821,2]
[323342044,1713906659459,-500.0,0.00020821,2]
[323342045,1713906659468,-500.0,0.00020821,2]
[323342046,1713906659478,-504.27,0.00020821,2]
[323342047,1713906659487,-200.269206,0.00020821,2]
[323342048,1713906659496,-200.269206,0.00020821,2]
[323342049,1713906659505,-500.0,0.00020821,2]
[323342050,1713906659514,-500.0,0.00020821,2]
[323342051,1713906659524,-500.0,0.00020821,2]
[323342052,1713906659533,-500.0,0.00020821,2]
[323342053,1713906659543,-500.0,0.00020821,2]
[323342054,1713906659553,-500.0,0.00020821,2]
[323342055,1713906659562,-500.0,0.00020821,2]
[323342056,1713906659572,-1837.74,0.00020821,2]
[323342057,1713906659581,-500.0,0.00020821,2]
[323342058,1713906659590,-2077.29,0.00020821,2]
[323342059,1713906659599,-500.0,0.00020821,2]
[323342060,1713906659608,-151.0,0.00020821,2]
[323342061,1713906659617,-500.0,0.00020821,2]
[323342062,1713906659627,-500.0,0.00020821,2]
[323342063,1713906659637,-500.0,0.00020821,2]
[323342064,1713906659646,-847.99,0.00020821,2]
[323342065,1713906659655,-500.0,0.00020821,2]
[323342066,1713906659664,-1200.21,0.00020821,2]
[323342067,1713906659673,-504.54120045,0.00020821,2]
[323342068,1713906659683,-1530.74,0.00020821,2]
[323342069,1713906659692,-500.0,0.00020821,2]
[323342070,1713906659701,-1003.63,0.00020821,2]
[323342071,1713906659710,-1106.45,0.00020821,2]
[323342072,1713906659719,-500.0,0.00020821,2]
[323342073,1713906659728,-1277.89,0.00020821,2]
[323342074,1713906659737,-886.08,0.00020821,2]
[323342075,1713906659745,-500.0,0.00020821,2]
[323342076,1713906659755,-500.0,0.00020821,2]
[323342077,1713906659763,-714.28,0.00020821,2]
[323342078,1713906659772,-644.94823493,0.00020821,2]
[323342079,1713906659781,-500.0,0.00020821,2]
[323342080,1713906659790,-1022.02,0.00020821,2]
[323342081,1713906659799,-546.63,0.00020821,2]
[323342082,1713906659808,-500.0,0.00020821,2]
[323342083,1713906659817,-905.67,0.00020821,2]
[323342084,1713906659826,-500.0,0.00020821,2]
[323342085,1713906659835,-711.87,0.00020821,2]
[323342086,1713906659845,-500.0,0.00020821,2]
[323342087,1713906659854,-850.29,0.00020821,2]
[323342088,1713906659863,-500.0,0.00020821,2]
[323342089,1713906659872,-500.0,0.00020821,2]
[323342090,1713906659881,-3203.89,0.00020821,2]
[323342091,1713906659890,-500.0,0.00020821,2]
[323342092,1713906659899,-554.02,0.00020821,2]
[323342093,1713906659908,-949.8,0.00020821,2]
[323342094,1713906659917,-1567.71,0.00020821,2]
[323342095,1713906659926,-500.0,0.00020821,2]
[323342096,1713906659936,-1038.44,0.00020821,2]
[323342097,1713906659945,-500.0,0.00020821,2]
[323342098,1713906659954,-500.0,0.00020821,2]
[323342099,1713906659963,-500.0,0.00020821,2]
[323342100,1713906659973,-500.0,0.00020821,2]
[323342101,1713906659982,-500.0,0.00020821,2]
[323342102,1713906659991,-500.0,0.00020821,2]
[323342103,1713906660000,-924.22,0.00020821,2]
[323342104,1713906660010,-902.89,0.00020821,2]
[323342105,1713906660019,-993.79,0.00020821,2]
[323342106,1713906660028,-554.07,0.00020821,2]
[323342107,1713906660037,-500.0,0.00020821,2]
[323342108,1713906660047,-873.054518,0.00020821,2]
[323342109,1713906660056,-873.054518,0.00020821,2]
[323342110,1713906660066,-786.38,0.00020821,2]
[323342111,1713906660075,-726.49,0.00020821,2]
[323342112,1713906660084,-500.0,0.00020821,2]
[323342113,1713906660093,-531.87,0.00020821,2]
[323342114,1713906660103,-500.0,0.00020821,2]
[323342115,1713906660113,-2258.36,0.00020821,2]
[323342116,1713906660126,-500.0,0.00020821,2]
[323342117,1713906660135,-1423.75,0.00020821,2]
[323342118,1713906660144,-500.0,0.00020821,2]
[323342119,1713906660153,-900.74,0.00020821,2]
[323342120,1713906660162,-1478.54,0.00020821,2]
[323342121,1713906660172,-151.0,0.00020821,2]
[323342122,1713906660182,-155.124668,0.00020821,2]
[323342123,1713906660190,-500.0,0.00020821,2]
[323342124,1713906660201,-1668.39,0.00020821,2]
[323342125,1713906660209,-678.36,0.00020821,2]
[323342126,1713906660219,-1376.89,0.00020821,2]
[323342127,1713906660228,-547.742032,0.00020821,2]
[323342128,1713906660238,-500.0,0.00020821,2]
[323342129,1713906660247,-500.0,0.00020821,2]
[323342130,1713906660256,-531.893123,0.00020821,2]
[323342131,1713906660266,-2107.07,0.00020821,2]
[323342132,1713906660275,-547.742032,0.00020821,2]
[323342133,1713906660284,-1737.0,0.00020821,2]
[323342134,1713906660293,-531.893123,0.00020821,2]
[323342135,1713906660303,-1067.53,0.00020821,2]
[323342136,1713906660313,-500.0,0.00020821,2]
[323342137,1713906660324,-532.06,0.00020821,2]
[323342138,1713906660334,-692.64,0.00020821,2]
[323342139,1713906660343,-500.0,0.00020821,2]
[323342140,1713906660355,-500.0,0.00020821,2]
[323342141,1713906660367,-1195.52,0.00020821,2]
[323342142,1713906660376,-500.0,0.00020821,2]
[323342143,1713906660386,-1607.99,0.00020821,2]
[323342144,1713906660396,-500.0,0.00020821,2]
[323342145,1713906660405,-860.82,0.00020821,2]
[323342146,1713906660414,-500.0,0.00020821,2]
[323342147,1713906660423,-500.0,0.00020821,2]
[323342148,1713906660433,-531.87,0.00020821,2]
[323342149,1713906660442,-721.01,0.00020821,2]
[323342150,1713906660451,-151.0,0.00020821,2]
[323342151,1713906660461,-500.0,0.00020821,2]
[323342152,1713906660470,-1486.41,0.00020821,2]
[323342153,1713906660479,-500.0,0.00020821,2]
[323342154,1713906660488,-500.0,0.00020821,2]
[323342155,1713906660497,-500.0,0.00020821,2]
[323342156,1713906660506,-210.616359,0.00020821,2]
[323342157,1713906660516,-1236.23,0.00020821,2]
[323342158,1713906660525,-210.616359,0.00020821,2]
[323342159,1713906660534,-500.0,0.00020821,2]
[323342160,1713906660543,-2278.12,0.00020821,2]
[323342161,1713906660552,-823.300687,0.00020821,2]
[323342162,1713906660562,-500.0,0.00020821,2]
[323342163,1713906660571,-10286.09,0.00020821,2]
[323342164,1713906660580,-823.300687,0.00020821,2]
[323342165,1713906660589,-500.0,0.00020821,2]
[323342166,1713906660599,-1093.525067,0.00020821,2]
[323342167,1713906660609,-1883.18,0.00020821,2]
[323342168,1713906660618,-944.84,0.00020821,2]
[323342169,1713906660627,-1093.525067,0.00020821,2]
[323342170,1713906660636,-574.81,0.00020821,2]
[323342171,1713906660645,-1124.79,0.00020821,2]
[323342172,1713906660654,-745.02,0.00020821,2]
[323342173,1713906660663,-1217.1,0.00020821,2]
[323342174,1713906660672,-500.0,0.00020821,2]
[323342175,1713906660681,-500.0,0.00020821,2]
[323342176,1713906660690,-674.83,0.00020821,2]
[323342177,1713906660700,-3698.81,0.00020821,2]
[323342178,1713906660709,-713.93,0.00020821,2]
[323342179,1713906660718,-151.0,0.00020821,2]
[323342180,1713906660727,-500.0,0.00020821,2]
[323342181,1713906660736,-151.0,0.00020821,2]
[323342182,1713906660746,-7456.02,0.00020821,2]
[323342183,1713906660757,-500.0,0.00020821,2]
[323342184,1713906660767,-500.0,0.00020821,2]
[323342185,1713906660776,-567.42,0.00020821,2]
[323342186,1713906660785,-500.0,0.00020821,2]
[323342187,1713906660794,-7031.43,0.00020821,2]
[323342188,1713906660803,-219.565655,0.00020821,2]
[323342189,1713906660813,-500.0,0.00020821,2]
[323342190,1713906660822,-760.73,0.00020821,2]
[323342191,1713906660832,-219.565655,0.00020821,2]
[323342192,1713906660841,-1432.34,0.00020821,2]
[323342193,1713906660852,-3253.21,0.00020821,2]
[323342194,1713906660861,-5262.87,0.00020821,2]
[323342195,1713906660870,-4015.64,0.00020821,2]
[323342196,1713906660879,-928.49,0.00020821,2]
[323342197,1713906660888,-500.0,0.00020821,2]
[323342198,1713906660897,-500.0,0.00020821,2]
[323342199,1713906660907,-500.0,0.00020821,2]
[323342200,1713906660916,-500.0,0.00020821,2]
[323342201,1713906660925,-500.0,0.00020821,2]
[323342202,1713906660934,-633.96,0.00020821,2]
[323342203,1713906660942,-1467.47,0.00020821,2]
[323342204,1713906660951,-500.0,0.00020821,2]
[323342205,1713906660960,-500.0,0.00020821,2]
[323342206,1713906660969,-500.0,0.00020821,2]
[323342207,1713906660978,-626.38,0.00020821,2]
[323342208,1713906660988,-944.49,0.00020821,2]
[323342209,1713906660996,-500.0,0.00020821,2]
[323342210,1713906661006,-1655.39,0.00020821,2]
[323342211,1713906661015,-617.10962198,0.00020821,2]
[323342212,1713906661024,-500.0,0.00020821,2]
[323342213,1713906661033,-500.0,0.00020821,2]
[323342214,1713906661042,-946.8,0.00020821,2]
[323342215,1713906661051,-2551.94,0.00020821,2]
[323342216,1713906661060,-2595.58,0.00020821,2]
[323342217,1713906661069,-500.0,0.00020821,2]
[323342218,1713906661078,-500.0,0.00020821,2]
[323342219,1713906661087,-1746.36,0.00020821,2]
[323342220,1713906661097,-500.0,0.00020821,2]
[323342221,1713906661105,-814.3,0.00020821,2]
[323342222,1713906661115,-500.0,0.00020821,2]
[323342223,1713906661127,-599.33,0.00020821,2]
[323342224,1713906661136,-500.0,0.00020821,2]
[323342225,1713906661146,-500.0,0.00020821,2]
[323342226,1713906661157,-817.94,0.00020821,2]
[323342227,1713906661167,-683.42,0.00020821,2]
[323342228,1713906661176,-500.0,0.00020821,2]
[323342229,1713906661188,-543.56,0.00020821,2]
[323342230,1713906661198,-24227.66,0.00020821,2]
[323342231,1713906661210,-500.0,0.00020821,2]
[323342232,1713906661221,-500.0,0.00020821,2]
[323342233,1713906661230,-543.7,0.00020821,2]
[323342234,1713906661239,-249.87237621,0.00020821,2]
[323342235,1713906662963,150.83408251,0.00020941,30]
[323342236,1713906663002,150.83408251,0.00020522,120]
[323342267,1713906959781,1206.79320679,0.00024796,30]
[323342268,1713906961146,150.84915085,0.00019814,30]
[323342269,1713906961223,150.84915085,0.00019418,120]
[323342270,1713907035094,523.30249276,0.00016,7]
[323342271,1713907068551,500.04871995,0.00016,7]
[323342273,1713907747173,-5849.07318814,0.00011755,2]
[323342274,1713907828392,2875.8669685,0.00025,30]
[323342301,1713907832111,-154.84515485,0.00011746,2]
[323342302,1713907832121,-154.84515485,0.00011747,2]
[323342303,1713907832130,-154.84515485,0.00011748,2]
[323342304,1713907832139,-154.84515485,0.00011748,2]
[323342305,1713907832149,-1394.46359454,0.00011748,2]
[323342306,1713907832159,-154.84515485,0.00011749,2]
[323342307,1713907832168,-154.84515485,0.0001175,2]
[323342308,1713907832176,-3533.14627737,0.0001175,2]
[323342309,1713907832185,-193.60170872,0.00011751,2]
[323342310,1713907832192,-157.76351589,0.00011751,2]
[323342311,1713907832199,-474.79230604,0.00011751,2]
[323342312,1713907832205,-300.0,0.00011752,2]
[323342313,1713907832212,-300.0,0.00011752,2]
[323342314,1713907832218,-1015.13550096,0.00011753,2]
[323342349,1713907837895,-1090.52068603,0.00011746,2]
[323342361,1713907838061,-44390.24746844,0.00011753,2]
[323342363,1713907838073,-286546.82520388,0.00011753,2]
[323342873,1713907843170,-495.22789991,0.00011753,2]
[323345334,1713908012688,250.0,0.00010653,2]
[323345335,1713908096318,24900.0,0.00010623,2]
[323345336,1713908309835,1206.67266007,0.00024532,30]
[323345338,1713908588286,24900.0,0.00010087,2]
[323345339,1713908621697,154.84515485,0.00010936,2]
[323345340,1713908629804,154.84515485,0.00010936,2]
[323345341,1713908638007,157.76351589,0.00010935,2]
[323345342,1713908646037,539.84959505,0.00010934,2]
[323345343,1713908654817,673.55445774,0.00010933,2]
[323345344,1713908663310,683.55183496,0.00010932,2]
[323345345,1713908672048,621.79153299,0.00010931,2]
[323345346,1713908680038,776.63668784,0.00010931,2]
[323345347,1713908688875,754.59206583,0.0001093,2]
[323345348,1713908800387,26256.35008927,0.0001093,2]
[323345373,1713909031975,-154.84515485,0.00011006,2]
[323345374,1713909031985,-1678.29832492,0.00011007,2]
[323345376,1713909031995,-539.84959505,0.00011007,2]
[323345378,1713909032004,-1075.73977117,0.00011007,2]
[323345380,1713909032015,-1361.80740877,0.00011007,2]
[323345382,1713909032026,-186.42738049,0.00011007,2]
[323345383,1713909032035,-1830.04764875,0.00011007,2]
[323345385,1713909032047,-1703.09862862,0.00011007,2]
[323345387,1713909032057,-1311.74164115,0.00011008,2]
[323345389,1713909032066,-521.52942585,0.00011008,2]
[323345390,1713909032075,-5801.77357762,0.00011008,2]
[323345392,1713909032084,-1878.1368462,0.00011008,2]
[323345395,1713909032094,-1394.46359454,0.00011009,2]
[323345398,1713909032103,-1090.52068603,0.00011009,2]
[323345401,1713909032112,-157.76351589,0.00011009,2]
[323345403,1713909032122,-162.02240911,0.0001101,2]
[323345405,1713909032131,-673.55445774,0.0001101,2]
[323345408,1713909032140,-329.62886819,0.00011011,2]
[323345411,1713909032149,-808.46399951,0.00011011,2]
[323345413,1713909032158,-701.94771615,0.00011012,2]
[323345416,1713909032167,-300.0,0.00011013,2]
[323345419,1713909032176,-50807.64845747,0.00011014,2]
[323345422,1713909032189,-1513.78651647,0.00011014,2]
[323345499,1713909037935,-495.36367476,0.00011005,2]
[323345501,1713909037945,-701.94771615,0.00011005,2]
[323345502,1713909037955,-173.22582113,0.00011006,2]
[323345504,1713909037964,-72560.09039098,0.00011007,2]
[323345505,1713909037974,-357663.48704308,0.00011014,2]
[323345507,1713909037983,-59159.66057733,0.00011015,2]
[323345509,1713909037992,-3995.06746015,0.00011052,2]
[323345510,1713909038001,-1016.00046324,0.00011145,2]
[323345512,1713909038010,-1490.32391025,0.00011149,2]
[323345514,1713909038020,-206.06744026,0.00011149,2]
[323345516,1713909038029,-549.53648482,0.00011149,2]
[323345517,1713909038039,-883.78313678,0.00011149,2]
[323345518,1713909038048,-309.67484219,0.00011149,2]
[323345520,1713909038058,-2587.76784421,0.00011149,2]
[323345522,1713909038067,-362.01061268,0.0001115,2]
[323345524,1713909038077,-1578.09578874,0.0001115,2]
[323345525,1713909038086,-283.38557575,0.0001115,2]
[323345526,1713909038095,-154.84515485,0.00011155,2]
[323345527,1713909038105,-35814.32839589,0.00011159,2]
[323345528,1713909038114,-977.80653021,0.00011747,2]
[323345529,1713909038123,-163.17458832,0.00011749,2]
[323345530,1713909038133,-157.24100892,0.0001175,2]
[323345531,1713909038143,-155.11285653,0.00011751,2]
[323345532,1713909038152,-474.41395909,0.00011752,2]
[323345533,1713909038162,-156.52450998,0.00011752,2]
[323345534,1713909038171,-230.81213325,0.00011752,2]
[323345535,1713909038180,-190.70630827,0.00011753,2]
[323345536,1713909038190,-155.18891197,0.00011753,2]
[323345537,1713909038199,-155.08349945,0.00011753,2]
[323345538,1713909038209,-166.41942752,0.00011753,2]
[323345539,1713909038219,-7863.87835467,0.00011753,2]
[323345540,1713909038228,-420.0,0.00012102,2]
[323345541,1713909038237,-1246.90839527,0.000129,2]
[323345542,1713909038247,-3995.06746014,0.00013059,2]
[323345543,1713909038256,-587.0,0.00013298,2]
[323345544,1713909038266,-2764.336407,0.00013699,2]
[323345545,1713909038275,-40649.6900394,0.00013699,2]
[323345546,1713909038284,-2761.0868726,0.00013699,2]
[323345547,1713909038294,-927.73627561,0.00014,2]
[323345548,1713909038305,-1246.90839527,0.00014464,2]
[323345550,1713909038315,-823.0,0.00014613,2]
[323345551,1713909038324,-300.0,0.00014728,2]
[323345552,1713909038333,-2775.48792824,0.00015,2]
[323345553,1713909038342,-628.221272,0.00015,2]
[323345554,1713909038352,-157.03688122,0.00015,2]
[323345555,1713909038361,-154.84515485,0.00015,2]
[323345556,1713909038372,-154.84515485,0.00015,2]
[323345557,1713909038381,-938.58206509,0.00015,2]
[323345558,1713909038390,-2099.47208497,0.00015,2]
[323345559,1713909038399,-1675.82446385,0.00015,2]
[323345560,1713909038408,-312.61134477,0.00015,2]
[323345561,1713909038417,-3995.06746014,0.00015065,2]
[323345562,1713909038426,-1152.0,0.00016058,2]
[323345563,1713909038435,-420.0,0.00016201,2]
[323345564,1713909038444,-272.57129579,0.000165,2]
[323345565,1713909038453,-3995.06746014,0.00017072,2]
[323345566,1713909038462,-1613.0,0.00017646,2]
[323345567,1713909038471,-587.0,0.00017821,2]
[323345568,1713909038480,-1246.90839527,0.0001787,2]
[323345569,1713909038490,-6496.47710287,0.00018,2]
[323345570,1713909038499,-1028.57752652,0.00018,2]
[323345571,1713909038508,-1364.66318969,0.00018,7]
[323345572,1713909038518,-6840.55264008,0.000189,2]
[323345573,1713909038526,-203.583665,0.00018911,2]
[323345574,1713909038535,-417.0,0.00018918,2]
[323345575,1713909038545,-221.693,0.00018918,2]
[323345576,1713909038555,-189.19295912,0.0001897,2]
[323345577,1713909038563,-154.84515485,0.00019,2]
[323345578,1713909038572,-637.9252794,0.00019,2]
[323345579,1713909038581,-173.81104632,0.00019,2]
[323345580,1713909038591,-234.67112287,0.00019,2]
[323345581,1713909038601,-200.0,0.00019,2]
[323345582,1713909038610,-3995.06746014,0.00019078,2]
[323345583,1713909038619,-998.90120867,0.00019177,2]
[323345584,1713909038627,-202.14692492,0.00019177,2]
[323345585,1713909038636,-500.0,0.00019178,2]
[323345586,1713909038645,-500.0,0.00019178,2]
[323345587,1713909038655,-500.0,0.00019178,2]
[323345588,1713909038664,-500.0,0.00019178,2]
[323345589,1713909038673,-500.0,0.00019178,2]
[323345590,1713909038682,-484.4036651,0.00019178,2]
[323345591,1713909038691,-500.0,0.00019178,2]
[323345592,1713909038702,-234.38072599,0.00019178,2]
[323345593,1713909038712,-500.0,0.00019178,2]
[323345594,1713909038721,-500.0,0.00019178,2]
[323345595,1713909038732,-500.0,0.00019178,2]
[323345596,1713909038741,-500.0,0.00019178,2]
[323345597,1713909038750,-500.0,0.00019178,2]
[323345598,1713909038759,-1752.61,0.00019178,2]
[323345599,1713909038769,-603.9,0.00019178,2]
[323345600,1713909038778,-504.78648204,0.00019178,2]
[323345601,1713909038787,-500.0,0.00019178,2]
[323345602,1713909038796,-387.84950899,0.00019178,2]
[323345603,1713909038806,-500.0,0.00019178,2]
[323345604,1713909038814,-151.0,0.00019178,2]
[323345605,1713909038824,-1337.55,0.00019178,2]
[323345606,1713909038833,-500.0,0.00019178,2]
[323345607,1713909038843,-500.0,0.00019178,2]
[323345608,1713909038853,-500.0,0.00019178,2]
[323345609,1713909038864,-500.0,0.00019178,2]
[323345610,1713909038875,-500.0,0.00019178,2]
[323345611,1713909038884,-500.0,0.00019178,2]
[323345612,1713909038893,-500.0,0.00019178,2]
[323345613,1713909038903,-500.0,0.00019178,2]
[323345614,1713909038912,-500.0,0.00019178,2]
[323345615,1713909038922,-522.04364305,0.00019178,2]
[323345616,1713909038931,-500.0,0.00019178,2]
[323345617,1713909038941,-500.0,0.00019178,2]
[323345618,1713909038951,-500.0,0.00019178,2]
[323345619,1713909038960,-500.0,0.00019178,2]
[323345620,1713909038969,-500.0,0.00019178,2]
[323345621,1713909038978,-609.58007568,0.00019178,2]
[323345622,1713909038987,-506.33566977,0.00019178,2]
[323345623,1713909038997,-594.33798587,0.00019178,2]
[323345624,1713909039006,-500.0,0.00019178,2]
[323345625,1713909039016,-500.0,0.00019178,2]
[323345626,1713909039025,-500.0,0.00019178,2]
[323345627,1713909039034,-500.0,0.00019178,2]
[323345628,1713909039043,-500.0,0.00019178,2]
[323345629,1713909039054,-500.0,0.00019178,2]
[323345630,1713909039063,-500.0,0.00019178,2]
[323345631,1713909039072,-500.0,0.00019178,2]
[323345632,1713909039082,-500.0,0.00019178,2]
[323345633,1713909039092,-500.0,0.00019178,2]
[323345634,1713909039102,-500.0,0.00019178,2]
[323345635,1713909039112,-660.96,0.00019178,2]
[323345636,1713909039121,-500.0,0.00019178,2]
[323345637,1713909039131,-500.0,0.00019178,2]
[323345638,1713909039140,-500.0,0.00019178,2]
[323345639,1713909039149,-500.0,0.00019178,2]
[323345640,1713909039159,-500.0,0.00019178,2]
[323345641,1713909039168,-501.53007906,0.00019178,2]
[323345642,1713909039177,-501.48050601,0.00019178,2]
[323345643,1713909039187,-509.02539192,0.00019178,2]
[323345644,1713909039196,-500.0,0.00019178,2]
[323345645,1713909039205,-820.99,0.00019178,2]
[323345646,1713909039215,-500.0,0.00019178,2]
[323345647,1713909039224,-500.0,0.00019178,2]
[323345648,1713909039233,-500.0,0.00019178,2]
[323345649,1713909039242,-1444.27,0.00019178,2]
[323345650,1713909039251,-586.45,0.00019178,2]
[323345651,1713909039260,-500.0,0.00019178,2]
[323345652,1713909039269,-521.69,0.00019178,2]
[323345653,1713909039279,-500.0,0.00019178,2]
[323345654,1713909039289,-647.55,0.00019178,2]
[323345655,1713909039298,-500.0,0.00019178,2]
[323345656,1713909039308,-500.0,0.00019178,2]
[323345657,1713909039317,-500.0,0.00019178,2]
[323345658,1713909039326,-500.0,0.00019178,2]
[323345659,1713909039336,-500.0,0.00019178,2]
[323345660,1713909039345,-500.0,0.00019178,2]
[323345662,1713909039354,-500.0,0.00019178,2]
[323345663,1713909039363,-328.24798801,0.00019178,2]
[323345664,1713909039372,-155.6130199,0.00019178,2]
[323345665,1713909039381,-500.0,0.00019178,2]
[323345666,1713909039392,-500.0,0.00019178,2]
[323345667,1713909039401,-500.0,0.00019178,2]
[323345668,1713909039411,-500.0,0.00019178,2]
[323345669,1713909039420,-500.0,0.00019178,2]
[323345670,1713909039429,-1733.8,0.00019178,2]
[323345671,1713909039438,-500.0,0.00019178,2]
[323345672,1713909039447,-500.0,0.00019178,2]
[323345673,1713909039457,-509.45276576,0.00019178,2]
[323345675,1713909039466,-500.0,0.00019178,2]
[323345677,1713909039475,-500.0,0.00019178,2]
[323345678,1713909039484,-500.0,0.00019178,2]
[323345680,1713909039493,-1057.34,0.00019178,2]
[323345681,1713909039502,-500.0,0.00019178,2]
[323345682,1713909039512,-500.0,0.00019178,2]
[323345683,1713909039521,-500.0,0.00019178,2]
[323345684,1713909039530,-1491.62,0.00019178,2]
[323345685,1713909039539,-500.0,0.00019178,2]
[323345686,1713909039548,-507.30928287,0.00019178,2]
[323345687,1713909039558,-500.0,0.00019178,2]
[323345688,1713909039567,-150.7314115,0.00019178,2]
[323345689,1713909039577,-386.17430036,0.00019178,2]
[323345690,1713909039586,-500.0,0.00019178,2]
[323345691,1713909039595,-500.0,0.00019178,2]
[323345692,1713909039605,-885.35,0.00019178,2]
[323345693,1713909039614,-500.0,0.00019178,2]
[323345694,1713909039623,-500.0,0.00019178,2]
[323345695,1713909039633,-780.51,0.00019178,2]
[323345697,1713909039643,-500.0,0.00019178,2]
[323345698,1713909039652,-557.81762977,0.00019178,2]
[323345699,1713909039661,-500.10261825,0.00019178,2]
[323345700,1713909039670,-500.0,0.00019178,2]
[323345701,1713909039679,-688.18,0.00019178,2]
[323345702,1713909039689,-300.05130895,0.00019178,2]
[323345703,1713909039698,-513.4026973,0.00019178,2]
[323345704,1713909039708,-500.0,0.00019178,2]
[323345705,1713909039717,-483.94318884,0.00019178,2]
[323345706,1713909039727,-867.06,0.00019178,2]
[323345707,1713909039736,-500.0,0.00019178,2]
[323345708,1713909039746,-500.0,0.00019178,2]
[323345709,1713909039755,-948.75,0.00019178,2]
[323345710,1713909039765,-500.0,0.00019178,2]
[323345711,1713909039775,-846.02,0.00019178,2]
[323345712,1713909039785,-500.0,0.00019178,2]
[323345714,1713909039795,-500.0,0.00019178,2]
[323345716,1713909039805,-607.0,0.00019178,2]
[323345718,1713909039814,-500.0,0.00019178,2]
[323345719,1713909039823,-500.0,0.00019178,2]
[323345720,1713909039833,-500.0,0.00019178,2]
[323345721,1713909039842,-500.0,0.00019178,2]
[323345723,1713909039852,-500.0,0.00019178,2]
[323345725,1713909039861,-500.0,0.00019178,2]
[323345726,1713909039874,-500.0,0.00019178,2]
[323345727,1713909039883,-500.0,0.00019178,2]
[323345728,1713909039893,-500.0,0.00019178,2]
[323345729,1713909039902,-500.0,0.00019178,2]
[323345731,1713909039911,-500.0,0.00019178,2]
[323345733,1713909039921,-500.0,0.00019178,2]
[323345735,1713909039930,-500.0,0.00019178,2]
[323345737,1713909039939,-500.0,0.00019178,2]
[323345739,1713909039950,-500.0,0.00019178,2]
[323345741,1713909039960,-500.0,0.00019178,2]
[323345743,1713909039970,-267.28861337,0.00019178,2]
[323345745,1713909039979,-500.0,0.00019178,2]
[323345747,1713909039989,-554.29,0.00019178,2]
[323345749,1713909039998,-1761.6,0.00019178,2]
[323345751,1713909040007,-500.0,0.00019178,2]
[323345753,1713909040017,-500.0,0.00019178,2]